fUST/lending_fUST_20250624
["ID","MTS","AMOUNT","RATE_DAILY","PERIOD"]
[367354975,1750763448755,-197.398771,0.00019452,2]
[367354976,1750763448765,-460.0,0.00019452,2]
[367354977,1750763448775,-460.0,0.00019452,2]
[367354978,1750763448785,-273.696864,0.00019452,2]
[367354979,1750763448794,-273.696864,0.00019452,2]
[367354980,1750763448804,-273.696864,0.00019452,2]
[367354981,1750763448814,-273.696864,0.00019452,2]
[367354982,1750763448824,-273.696864,0.00019452,2]
[367354983,1750763448834,-460.0,0.00019452,2]
[367354984,1750763448844,-273.696864,0.00019452,2]
[367354985,1750763448853,-273.696864,0.00019452,2]
[367354986,1750763448863,-273.696858,0.00019452,2]
[367354987,1750763448873,-192.197396,0.00019452,2]
[367354988,1750763448883,-460.0,0.00019452,2]
[367354989,1750763448894,-192.197396,0.00019452,2]
[367354990,1750763448904,-192.197396,0.00019452,2]
[367354991,1750763448914,-192.197396,0.00019452,2]
[367354992,1750763448925,-192.197396,0.00019452,2]
[367354993,1750763448935,-734.65,0.00019452,2]
[367354994,1750763448945,-192.197396,0.00019452,2]
[367354995,1750763448956,-192.197396,0.00019452,2]
[367354996,1750763448966,-192.197392,0.00019452,2]
[367354997,1750763448976,-627.75,0.00019452,2]
[367354998,1750763448986,-333.7,0.00019452,2]
[367354999,1750763448997,-460.28,0.00019452,2]
[367355000,1750763449007,-400.0,0.00019452,2]
[367355001,1750763449019,-460.0,0.00019452,2]
[367355002,1750763449029,-460.0,0.00019452,2]
[367355003,1750763449039,-460.0,0.00019452,2]
[367355004,1750763449052,-302.49893,0.00019452,2]
[367355005,1750763449063,-302.49893,0.00019452,2]
[367355006,1750763449073,-460.0,0.00019452,2]
[367355007,1750763449083,-302.49893,0.00019452,2]
[367355008,1750763449094,-302.498922,0.00019452,2]
[367355009,1750763449105,-460.0,0.00019452,2]
[367355010,1750763449115,-455.189549,0.00019452,2]
[367355011,1750763449125,-1082.43,0.00019452,2]
[367355012,1750763449136,-455.189549,0.00019452,2]
[367355013,1750763449146,-460.0,0.00019452,2]
[367355014,1750763449156,-455.189549,0.00019452,2]
[367355015,1750763449166,-455.189555,0.00019452,2]
[367355016,1750763449176,-440.0,0.00019452,2]
[367355017,1750763449185,-460.0,0.00019452,2]
[367355018,1750763449195,-460.0,0.00019452,2]
[367355019,1750763449205,-460.0,0.00019452,2]
[367355020,1750763449214,-1037.32,0.00019452,2]
[367355021,1750763449225,-513.2,0.00019452,2]
[367355022,1750763449238,-460.0,0.00019452,2]
[367355023,1750763449248,-370.0,0.00019452,2]
[367355024,1750763449257,-460.0,0.00019452,2]
[367355025,1750763449268,-309.748761,0.00019452,2]
[367355026,1750763449278,-309.748761,0.00019452,2]
[367355027,1750763449288,-460.0,0.00019452,2]
[367355028,1750763449297,-309.748761,0.00019452,2]
[367355029,1750763449307,-309.748752,0.00019452,2]
[367355030,1750763449316,-460.0,0.00019452,2]
[367355031,1750763449326,-2521.91,0.00019452,2]
[367355032,1750763449336,-801.04,0.00019452,2]
[367355033,1750763449345,-932.51,0.00019452,2]
[367355034,1750763449355,-460.0,0.00019452,2]
[367355035,1750763449365,-392.708897,0.00019452,2]
[367355036,1750763449376,-392.708897,0.00019452,2]
[367355037,1750763449387,-460.0,0.00019452,2]
[367355038,1750763449396,-392.708897,0.00019452,2]
[367355039,1750763449406,-392.708903,0.00019452,2]
[367355040,1750763449416,-2283.43,0.00019452,2]
[367355041,1750763449425,-460.0,0.00019452,2]
[367355042,1750763449435,-761.58,0.00019452,2]
[367355043,1750763449445,-2300.97,0.00019452,2]
[367355044,1750763449455,-924.09,0.00019452,2]
[367355045,1750763449465,-460.0,0.00019452,2]
[367355046,1750763449474,-874.74,0.00019452,2]
[367355047,1750763449484,-460.0,0.00019452,2]
[367355048,1750763449494,-503.584672,0.00019452,2]
[367355049,1750763449504,-503.584672,0.00019452,2]
[367355050,1750763449514,-460.0,0.00019452,2]
[367355051,1750763449523,-460.0,0.00019452,2]
[367355052,1750763449532,-460.0,0.00019452,2]
[367355053,1750763449542,-503.584672,0.00019452,2]
[367355054,1750763449552,-503.58468,0.00019452,2]
[367355055,1750763449562,-363.751776,0.00019452,2]
[367355056,1750763449572,-363.751776,0.00019452,2]
[367355057,1750763449722,-213.66798275,0.00019452,7]
[367355058,1750763449732,-460.0,0.00019452,2]
[367355059,1750763449741,-495.82,0.00019452,2]
[367355060,1750763449750,-363.751776,0.00019452,2]
[367355061,1750763449759,-363.751785,0.00019452,2]
[367355062,1750763449768,-460.0,0.00019452,2]
[367355063,1750763449777,-649.73,0.00019452,2]
[367355064,1750763449786,-460.0,0.00019452,2]
[367355065,1750763449795,-460.0,0.00019452,2]
[367355066,1750763449804,-460.0,0.00019452,2]
[367355067,1750763449814,-619.92,0.00019452,2]
[367355068,1750763449825,-2006.86,0.00019452,2]
[367355069,1750763449834,-488.7,0.00019452,2]
[367355070,1750763449844,-638.68,0.00019452,2]
[367355071,1750763449853,-2183.37,0.00019452,2]
[367355072,1750763449862,-1846.75,0.00019452,2]
[367355073,1750763449871,-460.0,0.00019452,2]
[367355074,1750763449880,-460.0,0.00019452,2]
[367355075,1750763449889,-728.46,0.00019452,2]
[367355076,1750763449899,-3379.64,0.00019452,2]
[367355077,1750763449908,-460.0,0.00019452,2]
[367355078,1750763449918,-460.0,0.00019452,2]
[367355079,1750763449927,-1130.62,0.00019452,2]
[367355080,1750763449936,-460.0,0.00019452,2]
[367355081,1750763449945,-460.0,0.00019452,2]
[367355082,1750763449954,-460.0,0.00019452,2]
[367355083,1750763449964,-460.0,0.00019452,2]
[367355084,1750763449973,-460.0,0.00019452,2]
[367355085,1750763449982,-1442.33,0.00019452,2]
[367355086,1750763449991,-984.06,0.00019452,2]
[367355087,1750763450000,-739.23,0.00019452,2]
[367355088,1750763450011,-460.0,0.00019452,2]
[367355089,1750763450020,-460.0,0.00019452,2]
[367355090,1750763450029,-1387.27,0.00019452,2]
[367355091,1750763450039,-2775.69,0.00019452,2]
[367355092,1750763450048,-3532.21,0.00019452,2]
[367355093,1750763450058,-460.0,0.00019452,2]
[367355094,1750763450068,-816.76,0.00019452,2]
[367355095,1750763450077,-460.0,0.00019452,2]
[367355096,1750763450087,-460.0,0.00019452,2]
[367355097,1750763450097,-868.27,0.00019452,2]
[367355098,1750763450106,-6182.72,0.00019452,2]
[367355099,1750763450115,-831.46,0.00019452,2]
[367355100,1750763450124,-460.0,0.00019452,2]
[367355101,1750763450134,-902.05,0.00019452,2]
[367355102,1750763450144,-1125.68,0.00019452,2]
[367355103,1750763450154,-649.46,0.00019452,2]
[367355104,1750763450163,-831.26,0.00019452,2]
[367355105,1750763450173,-460.0,0.00019452,2]
[367355106,1750763450182,-460.0,0.00019452,2]
[367355107,1750763450191,-792.36,0.00019452,2]
[367355108,1750763450201,-460.0,0.00019452,2]
[367355109,1750763450211,-12556.00642039,0.00019452,7]
[367355110,1750763450220,-202.06064037,0.00019452,2]
[367355111,1750763450231,-460.0,0.00019452,2]
[367355112,1750763450241,-460.0,0.00019452,2]
[367355113,1750763450250,-706.89,0.00019452,2]
[367355114,1750763450259,-2309.14,0.00019452,2]
[367355115,1750763450268,-2909.35,0.00019452,2]
[367355116,1750763450277,-460.0,0.00019452,2]
[367355117,1750763450286,-737.51,0.00019452,2]
[367355118,1750763450295,-460.0,0.00019452,2]
[367355119,1750763450304,-1700.1345124,0.000195,2]
[367355120,1750763450314,-365.9458251,0.000195,2]
[367355121,1750763450324,-446.0898845,0.000195,2]
[367355122,1750763450333,-731.8916502,0.000195,2]
[367355123,1750763450342,-151.0,0.000195,2]
[367355124,1750763450351,-365.9458251,0.000195,2]
[367355125,1750763450360,-365.9458251,0.000195,2]
[367355126,1750763450370,-365.9458251,0.000195,2]
[367355127,1750763450379,-365.9458251,0.000195,2]
[367355128,1750763450388,-2079.652302,0.00019502,2]
[367355129,1750763450398,-800.0,0.00019526,2]
[367355130,1750763450406,-168.0,0.00019564,2]
[367355131,1750763450415,-151.0,0.000196,2]
[367355132,1750763450424,-279.03958555,0.00019639,2]
[367355133,1750763450433,-500.0,0.00019649,2]
[367355134,1750763450442,-500.0,0.00019649,2]
[367355135,1750763450452,-500.0,0.00019685,2]
[367355136,1750763450461,-500.0,0.00019685,2]
[367355137,1750763450470,-500.0,0.00019686,2]
[367355138,1750763450479,-500.0,0.00019686,2]
[367355139,1750763450489,-500.0,0.00019686,2]
[367355140,1750763450498,-500.0,0.00019686,2]
[367355141,1750763450507,-215.43735121,0.00019686,2]
[367355142,1750763450516,-151.0,0.000197,2]
[367355143,1750763450525,-151.0,0.000197,2]
[367355144,1750763450534,-5000.0,0.00019714,2]
[367355145,1750763450543,-1000.0,0.00019721,2]
[367355146,1750763450552,-1000.0,0.00019721,2]
[367355147,1750763450562,-526.48524204,0.00019721,2]
[367355148,1750763450571,-1000.0,0.00019721,2]
[367355149,1750763450580,-1000.0,0.00019721,2]
[367355150,1750763450590,-1000.0,0.00019721,2]
[367355151,1750763450599,-1000.0,0.00019721,2]
[367355152,1750763450608,-1000.0,0.00019721,2]
[367355153,1750763450617,-1000.0,0.00019721,2]
[367355154,1750763450626,-1000.0,0.00019721,2]
[367355155,1750763450638,-1000.0,0.00019721,2]
[367355156,1750763450647,-1000.0,0.00019721,2]
[367355157,1750763450656,-1000.0,0.00019721,2]
[367355158,1750763450665,-1000.0,0.00019721,2]
[367355159,1750763450674,-1000.0,0.00019721,2]
[367355160,1750763450684,-953.20022986,0.00019721,2]
[367355161,1750763450693,-972.0,0.00019723,2]
[367355162,1750763450703,-151.0,0.00019726,2]
[367355163,1750763450713,-151.0,0.00019726,2]
[367355164,1750763450723,-151.0,0.00019726,2]
[367355165,1750763450732,-151.0,0.00019726,2]
[367355166,1750763450741,-152.115508,0.00019726,2]
[367355167,1750763450751,-237.283244,0.00019726,2]
[367355168,1750763450760,-237.283244,0.00019726,2]
[367355169,1750763450769,-237.283244,0.00019726,2]
[367355170,1750763450778,-237.283244,0.00019726,2]
[367355171,1750763450787,-152.931668,0.00019726,2]
[367355172,1750763450796,-460.0,0.00019726,2]
[367355173,1750763450805,-151.719977,0.00019726,2]
[367355174,1750763450814,-151.0,0.00019726,2]
[367355175,1750763450822,-179.156794,0.00019726,2]
[367355176,1750763450831,-460.0,0.00019726,2]
[367355177,1750763450840,-166.202019,0.00019726,2]
[367355178,1750763450848,-460.0,0.00019726,2]
[367355179,1750763450857,-940.110808,0.00019726,2]
[367355180,1750763450866,-940.110808,0.00019726,2]
[367355181,1750763450876,-460.0,0.00019726,2]
[367355182,1750763450884,-597.74081202,0.00019726,2]
[367355183,1750763450893,-549.94,0.00019726,2]
[367355184,1750763450902,-460.0,0.00019726,2]
[367355185,1750763450911,-380.22800727,0.00019726,2]
[367355186,1750763450920,-460.0,0.00019726,2]
[367355187,1750763450928,-460.0,0.00019726,2]
[367355188,1750763450937,-460.0,0.00019726,2]
[367355189,1750763450946,-460.0,0.00019726,2]
[367355190,1750763450954,-460.0,0.00019726,2]
[367355191,1750763450963,-460.0,0.00019726,2]
[367355192,1750763450972,-460.0,0.00019726,2]
[367355193,1750763450981,-460.0,0.00019726,2]
[367355194,1750763450989,-460.0,0.00019726,2]
[367355195,1750763450998,-460.0,0.00019726,2]
[367355196,1750763451008,-460.0,0.00019726,2]
[367355197,1750763451017,-483.98,0.00019726,2]
[367355198,1750763451026,-460.0,0.00019726,2]
[367355199,1750763451034,-460.0,0.00019726,2]
[367355200,1750763451043,-547.51,0.00019726,2]
[367355201,1750763451052,-460.0,0.00019726,2]
[367355202,1750763451061,-460.0,0.00019726,2]
[367355203,1750763451069,-460.0,0.00019726,2]
[367355204,1750763451078,-564.47246709,0.00019726,2]
[367355205,1750763451087,-460.0,0.00019726,2]
[367355206,1750763451096,-734.65,0.00019726,2]
[367355207,1750763451104,-627.75,0.00019726,2]
[367355208,1750763451113,-460.28,0.00019726,2]
[367355209,1750763451121,-460.0,0.00019726,2]
[367355210,1750763451131,-460.0,0.00019726,2]
[367355211,1750763451140,-460.0,0.00019726,2]
[367355212,1750763451148,-460.0,0.00019726,2]
[367355213,1750763451157,-1082.43,0.00019726,2]
[367355214,1750763451166,-460.0,0.00019726,2]
[367355215,1750763451174,-460.0,0.00019726,2]
[367355216,1750763451183,-1037.32,0.00019726,2]
[367355217,1750763451192,-513.2,0.00019726,2]
[367355218,1750763451200,-460.0,0.00019726,2]
[367355219,1750763451209,-460.0,0.00019726,2]
[367355220,1750763451218,-460.0,0.00019726,2]
[367355221,1750763451228,-460.0,0.00019726,2]
[367355222,1750763451239,-2521.91,0.00019726,2]
[367355223,1750763451247,-801.04,0.00019726,2]
[367355224,1750763451256,-932.51,0.00019726,2]
[367355225,1750763451265,-460.0,0.00019726,2]
[367355226,1750763451274,-460.0,0.00019726,2]
[367355227,1750763451283,-2283.43,0.00019726,2]
[367355228,1750763451292,-460.0,0.00019726,2]
[367355229,1750763451300,-761.58,0.00019726,2]
[367355230,1750763451311,-2300.97,0.00019726,2]
[367355231,1750763451319,-924.09,0.00019726,2]
[367355232,1750763451328,-460.0,0.00019726,2]
[367355233,1750763451337,-874.74,0.00019726,2]
[367355234,1750763451345,-460.0,0.00019726,2]
[367355235,1750763451355,-460.0,0.00019726,2]
[367355236,1750763451364,-460.0,0.00019726,2]
[367355237,1750763451372,-460.0,0.00019726,2]
[367355238,1750763451381,-460.0,0.00019726,2]
[367355239,1750763451390,-495.82,0.00019726,2]
[367355240,1750763451398,-154.00978643,0.00019726,2]
[367355241,1750763451407,-649.73,0.00019726,2]
[367355242,1750763451416,-460.0,0.00019726,2]
[367355243,1750763451425,-460.0,0.00019726,2]
[367355244,1750763451434,-460.0,0.00019726,2]
[367355245,1750763451443,-460.0,0.00019726,2]
[367355246,1750763451453,-619.92,0.00019726,2]
[367355247,1750763451462,-2006.86,0.00019726,2]
[367355248,1750763451471,-488.7,0.00019726,2]
[367355249,1750763451480,-638.68,0.00019726,2]
[367355250,1750763451490,-2183.37,0.00019726,2]
[367355251,1750763451499,-1846.75,0.00019726,2]
[367355252,1750763451509,-460.0,0.00019726,2]
[367355253,1750763451519,-265.46,0.00019726,2]
[367355254,1750763451528,-728.46,0.00019726,2]
[367355255,1750763451537,-3379.64,0.00019726,2]
[367355256,1750763451547,-460.0,0.00019726,2]
[367355257,1750763451556,-460.0,0.00019726,2]
[367355258,1750763451565,-1130.62,0.00019726,2]
[367355259,1750763451575,-460.0,0.00019726,2]
[367355260,1750763451585,-460.0,0.00019726,2]
[367355261,1750763451594,-460.0,0.00019726,2]
[367355262,1750763451603,-460.0,0.00019726,2]
[367355263,1750763451614,-1442.33,0.00019726,2]
[367355264,1750763451630,-984.06,0.00019726,2]
[367355265,1750763451640,-739.23,0.00019726,2]
[367355266,1750763451650,-460.0,0.00019726,2]
[367355267,1750763451659,-460.0,0.00019726,2]
[367355268,1750763451668,-1387.27,0.00019726,2]
[367355269,1750763451678,-2775.69,0.00019726,2]
[367355270,1750763451687,-3532.21,0.00019726,2]
[367355271,1750763451697,-460.0,0.00019726,2]
[367355272,1750763451707,-816.76,0.00019726,2]
[367355273,1750763451716,-460.0,0.00019726,2]
[367355274,1750763451726,-460.0,0.00019726,2]
[367355275,1750763451735,-868.27,0.00019726,2]
[367355276,1750763451744,-6182.72,0.00019726,2]
[367355277,1750763451753,-831.46,0.00019726,2]
[367355278,1750763451763,-460.0,0.00019726,2]
[367355279,1750763451772,-902.05,0.00019726,2]
[367355280,1750763451781,-1125.68,0.00019726,2]
[367355281,1750763451800,-649.46,0.00019726,2]
[367355282,1750763451810,-831.26,0.00019726,2]
[367355283,1750763451819,-460.0,0.00019726,2]
[367355284,1750763451829,-460.0,0.00019726,2]
[367355285,1750763451839,-792.36,0.00019726,2]
[367355286,1750763451849,-460.0,0.00019726,2]
[367355287,1750763451859,-460.0,0.00019726,2]
[367355288,1750763451869,-460.0,0.00019726,2]
[367355289,1750763451879,-706.89,0.00019726,2]
[367355290,1750763451888,-2309.14,0.00019726,2]
[367355291,1750763451898,-2909.35,0.00019726,2]
[367355292,1750763451908,-460.0,0.00019726,2]
[367355293,1750763451917,-737.51,0.00019726,2]
[367355294,1750763451927,-460.0,0.00019726,2]
[367355295,1750763451936,-208.08641367,0.00019726,3]
[367355296,1750763451946,-1695.0,0.00019733,2]
[367355297,1750763451956,-2068.83641438,0.00019757,2]
[367355298,1750763451965,-500.0,0.00019759,2]
[367355299,1750763451975,-274.17274144,0.00019759,2]
[367355300,1750763451984,-151.0,0.000198,2]
[367355301,1750763451994,-4460.21824594,0.000198,2]
[367355302,1750763452004,-168.0,0.00019802,2]
[367355303,1750763452013,-4447.0,0.00019811,2]
[367355304,1750763452023,-205.678824,0.00019835,2]
[367355305,1750763452032,-151.0,0.00019835,2]
[367355306,1750763452042,-151.0,0.00019835,2]
[367355307,1750763452051,-617.83311831,0.00019861,2]
[367355308,1750763452062,-151.0,0.00019862,2]
[367355309,1750763452071,-198.0,0.0001989,2]
[367355310,1750763452081,-151.0,0.000199,2]
[367355311,1750763452091,-168.0,0.00019938,2]
[367355312,1750763452100,-168.0,0.00019978,2]
[367355313,1750763452110,-100000.0,0.0001999,2]
[367355314,1750763452121,-151.0,0.0001999,2]
[367355315,1750763452131,-151.0,0.0001999,2]
[367355316,1750763452142,-237.283244,0.0001999,2]
[367355317,1750763452151,-237.283244,0.0001999,2]
[367355318,1750763452160,-151.0,0.0001999,2]
[367355319,1750763452170,-179.156794,0.0001999,2]
[367355320,1750763452179,-166.202019,0.0001999,2]
[367355321,1750763452188,-940.110808,0.0001999,2]
[367355322,1750763452198,-940.110808,0.0001999,2]
[367355323,1750763452209,-5000.0,0.0002,4]
[367355324,1750763452220,-151.0,0.0002,2]
[367355325,1750763452232,-239.127351,0.0002,2]
[367355326,1750763452242,-237.283244,0.0002,2]
[367355327,1750763452252,-237.283244,0.0002,2]
[367355328,1750763452263,-460.0,0.0002,2]
[367355329,1750763452273,-179.156794,0.0002,2]
[367355330,1750763452283,-314.30049781,0.0002,2]
[367355331,1750763452292,-166.202019,0.0002,2]
[367355332,1750763452302,-460.0,0.0002,2]
[367355333,1750763452312,-940.110808,0.0002,2]
[367355334,1750763452322,-460.0,0.0002,2]
[367355335,1750763452331,-549.94,0.0002,2]
[367355336,1750763452341,-460.0,0.0002,2]
[367355337,1750763452352,-460.0,0.0002,2]
[367355338,1750763452361,-460.0,0.0002,2]
[367355339,1750763452370,-460.0,0.0002,2]
[367355340,1750763452379,-460.0,0.0002,2]
[367355341,1750763452389,-10000.0,0.0002,2]
[367355342,1750763452399,-460.0,0.0002,2]
[367355343,1750763452408,-460.0,0.0002,2]
[367355344,1750763452418,-460.0,0.0002,2]
[367355345,1750763452427,-460.0,0.0002,2]
[367355346,1750763452436,-460.0,0.0002,2]
[367355347,1750763452446,-460.0,0.0002,2]
[367355348,1750763452455,-460.0,0.0002,2]
[367355349,1750763452464,-483.98,0.0002,2]
[367355350,1750763452474,-460.0,0.0002,2]
[367355351,1750763452483,-460.0,0.0002,2]
[367355352,1750763452492,-547.51,0.0002,2]
[367355353,1750763452503,-460.0,0.0002,2]
[367355354,1750763452513,-460.0,0.0002,2]
[367355355,1750763452523,-221.75136736,0.0002,2]
[367355356,1750763452534,-460.0,0.0002,2]
[367355357,1750763452544,-734.65,0.0002,2]
[367355358,1750763452554,-627.75,0.0002,2]
[367355359,1750763452566,-460.28,0.0002,2]
[367355360,1750763452575,-460.0,0.0002,2]
[367355361,1750763452585,-460.0,0.0002,2]
[367355362,1750763452595,-460.0,0.0002,2]
[367355363,1750763452606,-460.0,0.0002,2]
[367355364,1750763452616,-1082.43,0.0002,2]
[367355365,1750763452625,-460.0,0.0002,2]
[367355366,1750763452634,-460.0,0.0002,2]
[367355367,1750763452644,-160.0,0.0002,7]
[367355368,1750763452654,-1037.32,0.0002,2]
[367355369,1750763452663,-513.2,0.0002,2]
[367355370,1750763452672,-460.0,0.0002,2]
[367355371,1750763452682,-460.0,0.0002,2]
[367355372,1750763452691,-460.0,0.0002,2]
[367355373,1750763452701,-460.0,0.0002,2]
[367355374,1750763452710,-2521.91,0.0002,2]
[367355375,1750763452720,-801.04,0.0002,2]
[367355376,1750763452729,-932.51,0.0002,2]
[367355377,1750763452739,-460.0,0.0002,2]
[367355378,1750763452749,-460.0,0.0002,2]
[367355379,1750763452758,-2283.43,0.0002,2]
[367355380,1750763452767,-460.0,0.0002,2]
[367355381,1750763452777,-761.58,0.0002,2]
[367355382,1750763452786,-2300.97,0.0002,2]
[367355383,1750763452796,-924.09,0.0002,2]
[367355384,1750763452805,-460.0,0.0002,2]
[367355385,1750763452815,-874.74,0.0002,2]
[367355386,1750763452825,-460.0,0.0002,2]
[367355387,1750763452836,-460.0,0.0002,2]
[367355388,1750763452846,-460.0,0.0002,2]
[367355389,1750763452857,-460.0,0.0002,2]
[367355390,1750763452866,-460.0,0.0002,2]
[367355391,1750763452876,-495.82,0.0002,2]
[367355392,1750763452885,-649.73,0.0002,2]
[367355393,1750763452895,-460.0,0.0002,2]
[367355394,1750763452904,-460.0,0.0002,2]
[367355395,1750763452914,-460.0,0.0002,2]
[367355396,1750763452924,-460.0,0.0002,2]
[367355397,1750763452933,-619.92,0.0002,2]
[367355398,1750763452942,-2006.86,0.0002,2]
[367355399,1750763452953,-488.7,0.0002,2]
[367355400,1750763452962,-638.68,0.0002,2]
[367355401,1750763452972,-2183.37,0.0002,2]
[367355402,1750763452981,-1846.75,0.0002,2]
[367355403,1750763452990,-460.0,0.0002,2]
[367355404,1750763452999,-728.46,0.0002,2]
[367355405,1750763453008,-460.0,0.0002,2]
[367355406,1750763453018,-460.0,0.0002,2]
[367355407,1750763453027,-3379.64,0.0002,2]
[367355408,1750763453036,-1130.62,0.0002,2]
[367355409,1750763453045,-460.0,0.0002,2]
[367355410,1750763453054,-460.0,0.0002,2]
[367355411,1750763453064,-460.0,0.0002,2]
[367355412,1750763453236,-160.0,0.0002,7]
[367355413,1750763453246,-460.0,0.0002,2]
[367355414,1750763453255,-1442.33,0.0002,2]
[367355415,1750763453264,-984.06,0.0002,2]
[367355416,1750763453274,-739.23,0.0002,2]
[367355417,1750763453283,-460.0,0.0002,2]
[367355418,1750763453292,-460.0,0.0002,2]
[367355419,1750763453303,-1387.27,0.0002,2]
[367355420,1750763453312,-2775.69,0.0002,2]
[367355421,1750763453322,-3532.21,0.0002,2]
[367355422,1750763453331,-460.0,0.0002,2]
[367355423,1750763453340,-816.76,0.0002,2]
[367355424,1750763453350,-460.0,0.0002,2]
[367355425,1750763453359,-460.0,0.0002,2]
[367355426,1750763453369,-868.27,0.0002,2]
[367355427,1750763453378,-200.0,0.0002,2]
[367355428,1750763453389,-6182.72,0.0002,2]
[367355429,1750763453399,-831.46,0.0002,2]
[367355430,1750763453408,-460.0,0.0002,2]
[367355431,1750763453417,-902.05,0.0002,2]
[367355432,1750763453426,-1125.68,0.0002,2]
[367355433,1750763453436,-649.46,0.0002,2]
[367355434,1750763453446,-831.26,0.0002,2]
[367355435,1750763453456,-212.85,0.0002,2]
[367355436,1750763453465,-460.0,0.0002,2]
[367355437,1750763453474,-792.36,0.0002,2]
[367355438,1750763453483,-460.0,0.0002,2]
[367355439,1750763453492,-460.0,0.0002,2]
[367355440,1750763453502,-460.0,0.0002,2]
[367355441,1750763453511,-706.89,0.0002,2]
[367355442,1750763453520,-2309.14,0.0002,2]
[367355443,1750763453529,-2909.35,0.0002,2]
[367355444,1750763453539,-607.58038699,0.0002,2]
[367355445,1750763453548,-737.51,0.0002,2]
[367355446,1750763453557,-460.0,0.0002,2]
[367355447,1750763453566,-168.11580436,0.00020007,2]
[367355448,1750763453576,-319.0466262,0.00020041,2]
[367355449,1750763453585,-1695.0,0.00020052,2]
[367355450,1750763453594,-9568.43691248,0.00020069,2]
[367355451,1750763453603,-25600.08145859,0.0002007,2]
[367355452,1750763453612,-2068.83641438,0.00020097,2]
[367355453,1750763453622,-3328.22753208,0.000201,2]
[367355454,1750763453631,-3328.22753205,0.00020107,2]
[367355455,1750763453640,-500.0,0.00020164,2]
[367355456,1750763453649,-462242.35281404,0.00020168,2]
[367355457,1750763453860,-3632.79933262,0.00020168,2]
[367355458,1750763453872,-728.1996,0.00020168,2]
[367355459,1750763453887,-1843.21670534,0.00020168,2]
[367355460,1750763454148,-469.21869622,0.00019178,2]
[367355461,1750763454157,-254.21857432,0.00019178,2]
[367355462,1750763454166,-8664.83256354,0.00020168,2]
[367355463,1750763454178,-254.00260516,0.00020168,2]
[367355464,1750763454189,-514.49783052,0.00020168,2]
[367355465,1750763454528,-151.0,0.00019166,2]
[367355466,1750763454537,-151.0,0.00019166,2]
[367355467,1750763454546,-198.0,0.00019166,2]
[367355468,1750763454556,-460.0,0.00019178,2]
[367355469,1750763454565,-846.68469334,0.00019452,7]
[367355470,1750763454574,-17939.99331337,0.00020168,2]
[367355471,1750763454586,-4130.90573929,0.00020168,2]
[367355472,1750763454597,-15077.22537641,0.00020168,2]
[367355473,1750763454618,-460.0,0.00019452,2]
[367355474,1750763454627,-32848.66500894,0.00020168,2]